fUSD/lending_fUSD_20250110
["ID","MTS","AMOUNT","RATE_DAILY","PERIOD"]
[348379870,1736485842069,-500.0,0.00010271,2]
[348379871,1736485842078,-500.0,0.00010271,2]
[348379872,1736485842087,-500.0,0.00010271,2]
[348379873,1736485842097,-500.0,0.00010271,2]
[348379874,1736485842107,-500.0,0.00010271,2]
[348379875,1736485842117,-500.0,0.00010271,2]
[348379876,1736485842127,-500.0,0.00010271,2]
[348379877,1736485842137,-745.91,0.00010271,2]
[348379878,1736485842149,-500.0,0.00010271,2]
[348379879,1736485842159,-500.0,0.00010271,2]
[348379880,1736485842171,-529.14,0.00010271,2]
[348379881,1736485842181,-544.93,0.00010271,2]
[348379882,1736485842191,-500.0,0.00010271,2]
[348379883,1736485842203,-743.07,0.00010271,2]
[348379884,1736485842213,-500.0,0.00010271,2]
[348379885,1736485842225,-506.72200388,0.00010271,2]
[348379886,1736485842237,-500.0,0.00010271,2]
[348379887,1736485842248,-500.0,0.00010271,2]
[348379888,1736485842258,-758.33,0.00010271,2]
[348379889,1736485842270,-500.0,0.00010271,2]
[348379890,1736485842282,-500.0,0.00010271,2]
[348379891,1736485842293,-631.41,0.00010271,2]
[348379892,1736485842304,-751.42,0.00010271,2]
[348379893,1736485842315,-500.0,0.00010271,2]
[348379894,1736485842325,-500.0,0.00010271,2]
[348379895,1736485842336,-809.57,0.00010271,2]
[348379896,1736485842349,-764.18,0.00010271,2]
[348379897,1736485842358,-541.73,0.00010271,2]
[348379898,1736485842368,-500.0,0.00010271,2]
[348379899,1736485842377,-515.8823615,0.00010271,2]
[348379900,1736485842387,-500.0,0.00010271,2]
[348379901,1736485842398,-665.92,0.00010271,2]
[348379902,1736485842408,-500.0,0.00010271,2]
[348379903,1736485842418,-500.0,0.00010271,2]
[348379904,1736485842427,-500.0,0.00010271,2]
[348379905,1736485842437,-751.87,0.00010271,2]
[348379906,1736485842446,-782.38,0.00010271,2]
[348379907,1736485842456,-589.61,0.00010271,2]
[348379908,1736485842466,-540.49,0.00010271,2]
[348379909,1736485842475,-500.0,0.00010271,2]
[348379910,1736485842484,-665.21,0.00010271,2]
[348379911,1736485842495,-713.83,0.00010271,2]
[348379912,1736485842504,-734.51,0.00010271,2]
[348379913,1736485842513,-502.04726473,0.00010271,2]
[348379914,1736485842523,-500.0,0.00010271,2]
[348379915,1736485842532,-500.0,0.00010271,2]
[348379916,1736485842541,-500.0,0.00010271,2]
[348379917,1736485842551,-535.18,0.00010271,2]
[348379918,1736485842560,-500.0,0.00010271,2]
[348379919,1736485842570,-430.82743348,0.00010271,2]
[348379921,1736485842579,-781.63,0.00010271,2]
[348379923,1736485842589,-629.89,0.00010271,2]
[348379925,1736485842599,-1563.89,0.00010271,2]
[348379927,1736485842609,-500.0,0.00010271,2]
[348379929,1736485842618,-706.08,0.00010271,2]
[348379930,1736485842627,-1621.74,0.00010271,2]
[348379931,1736485842637,-600.7,0.00010271,2]
[348379932,1736485842647,-500.0,0.00010271,2]
[348379933,1736485842656,-571.16,0.00010271,2]
[348379935,1736485842666,-1061.94,0.00010271,2]
[348379937,1736485842675,-2953.75,0.00010271,2]
[348379939,1736485842685,-500.0,0.00010271,2]
[348379940,1736485842694,-1036.81,0.00010271,2]
[348379941,1736485842703,-363.42536824,0.00010271,2]
[348379942,1736485842712,-500.0,0.00010271,2]
[348379943,1736485842722,-711.64,0.00010271,2]
[348379944,1736485842734,-726.71,0.00010271,2]
[348379945,1736485842745,-791.12,0.00010271,2]
[348379946,1736485842754,-500.0,0.00010271,2]
[348379947,1736485842764,-488.181607,0.00010271,2]
[348379948,1736485842775,-2512.42,0.00010271,2]
[348379949,1736485842784,-861.19,0.00010271,2]
[348379950,1736485842795,-978.38,0.00010271,2]
[348379951,1736485842804,-560.89,0.00010271,2]
[348379952,1736485842815,-500.0,0.00010271,2]
[348379953,1736485842825,-500.0,0.00010271,2]
[348379954,1736485842835,-855.48,0.00010271,2]
[348379955,1736485842846,-1540.33,0.00010271,2]
[348379956,1736485842856,-985.69,0.00010271,2]
[348379957,1736485842865,-791.97,0.00010271,2]
[348379958,1736485842877,-481.684011,0.00010271,2]
[348379959,1736485842888,-1720.38,0.00010271,2]
[348379960,1736485842898,-500.0,0.00010271,2]
[348379961,1736485842907,-3237.46,0.00010271,2]
[348379962,1736485842917,-897.12,0.00010271,2]
[348379963,1736485842926,-716.16,0.00010271,2]
[348379964,1736485842936,-679.51,0.00010271,2]
[348379965,1736485842945,-636.34,0.00010271,2]
[348379966,1736485842955,-500.0,0.00010271,2]
[348379967,1736485842965,-2756.52,0.00010271,2]
[348379968,1736485842975,-500.0,0.00010271,2]
[348379969,1736485842984,-509.5,0.00010271,2]
[348379970,1736485842995,-500.0,0.00010271,2]
[348379971,1736485843004,-668.18,0.00010271,2]
[348379972,1736485843015,-500.0,0.00010271,2]
[348379973,1736485843024,-500.0,0.00010271,2]
[348379974,1736485843033,-931.51,0.00010271,2]
[348379975,1736485843042,-916.73,0.00010271,2]
[348379976,1736485843052,-500.0,0.00010271,2]
[348379977,1736485843061,-833.46,0.00010271,2]
[348379978,1736485843071,-500.0,0.00010271,2]
[348379979,1736485843080,-500.0,0.00010271,2]
[348379980,1736485843089,-648.63,0.00010271,2]
[348379981,1736485843099,-1563.25,0.00010271,2]
[348379982,1736485843108,-715.62,0.00010271,2]
[348379983,1736485843118,-500.0,0.00010271,2]
[348379984,1736485843127,-500.0,0.00010271,2]
[348379985,1736485843136,-684.13,0.00010271,2]
[348379986,1736485843145,-1315.2,0.00010271,2]
[348379987,1736485843155,-500.0,0.00010271,2]
[348379988,1736485843163,-500.0,0.00010271,2]
[348379989,1736485843173,-500.0,0.00010271,2]
[348379990,1736485843182,-843.01,0.00010271,2]
[348379991,1736485843191,-500.0,0.00010271,2]
[348379992,1736485843200,-500.0,0.00010271,2]
[348379993,1736485843209,-500.0,0.00010271,2]
[348379994,1736485843219,-500.0,0.00010271,2]
[348379996,1736485843228,-503.31167397,0.00010271,2]
[348379998,1736485843237,-500.0,0.00010271,2]
[348379999,1736485843246,-650.08,0.00010271,2]
[348380000,1736485843256,-500.0,0.00010271,2]
[348380001,1736485843265,-572.46,0.00010271,2]
[348380002,1736485843274,-500.0,0.00010271,2]
[348380003,1736485843283,-500.0,0.00010271,2]
[348380004,1736485843292,-500.0,0.00010271,2]
[348380005,1736485843302,-681.82,0.00010271,2]
[348380006,1736485843311,-500.0,0.00010271,2]
[348380007,1736485843322,-500.0,0.00010271,2]
[348380008,1736485843331,-884.01,0.00010271,2]
[348380009,1736485843341,-572.56,0.00010271,2]
[348380010,1736485843353,-500.0,0.00010271,2]
[348380011,1736485843363,-570.27,0.00010271,2]
[348380012,1736485843372,-524.1,0.00010271,2]
[348380013,1736485843382,-258.25202335,0.00010271,2]
[348380014,1736485843391,-619.26473656,0.00010271,2]
[348380015,1736485843401,-500.0,0.00010271,2]
[348380016,1736485843411,-500.0,0.00010271,2]
[348380017,1736485843423,-500.0,0.00010271,2]
[348380018,1736485843434,-500.0,0.00010271,2]
[348380019,1736485843445,-576.32,0.00010271,2]
[348380020,1736485843455,-500.0,0.00010271,2]
[348380021,1736485843464,-500.0,0.00010271,2]
[348380022,1736485843474,-500.0,0.00010271,2]
[348380023,1736485843485,-3399.4,0.00010271,2]
[348380024,1736485843495,-500.0,0.00010271,2]
[348380025,1736485843506,-500.0,0.00010271,2]
[348380026,1736485843517,-2731.96,0.00010271,2]
[348380027,1736485843530,-623.89,0.00010271,2]
[348380028,1736485843541,-500.0,0.00010271,2]
[348380029,1736485843552,-500.0,0.00010271,2]
[348380030,1736485843562,-225.41078968,0.00010271,2]
[348380031,1736485843571,-500.0,0.00010272,2]
[348380032,1736485843580,-520.91,0.00010272,2]
[348380033,1736485843590,-309.55354459,0.00010272,2]
[348380034,1736485843599,-500.0,0.00010272,2]
[348380035,1736485843609,-519.85,0.00010272,2]
[348380036,1736485843618,-500.0,0.00010272,2]
[348380037,1736485843627,-500.0,0.00010272,2]
[348380038,1736485843636,-500.0,0.00010272,2]
[348380039,1736485843645,-699.0,0.00010272,2]
[348380040,1736485843655,-500.0,0.00010272,2]
[348380041,1736485843664,-500.0,0.00010272,2]
[348380042,1736485843673,-500.0,0.00010272,2]
[348380043,1736485843682,-500.0,0.00010272,2]
[348380044,1736485843691,-574.69,0.00010272,2]
[348380045,1736485843701,-500.0,0.00010272,2]
[348380046,1736485843710,-500.0,0.00010272,2]
[348380047,1736485843719,-500.0,0.00010272,2]
[348380048,1736485843729,-500.0,0.00010272,2]
[348380049,1736485843738,-500.0,0.00010272,2]
[348380050,1736485843747,-500.0,0.00010272,2]
[348380051,1736485843757,-500.0,0.00010272,2]
[348380052,1736485843766,-620.37,0.00010272,2]
[348380053,1736485843775,-500.0,0.00010272,2]
[348380054,1736485843784,-500.0,0.00010272,2]
[348380055,1736485843793,-500.0,0.00010272,2]
[348380056,1736485843802,-500.0,0.00010272,2]
[348380057,1736485843812,-500.0,0.00010272,2]
[348380058,1736485843821,-500.0,0.00010272,2]
[348380059,1736485843831,-500.0,0.00010272,2]
[348380060,1736485843841,-519.05,0.00010272,2]
[348380061,1736485843850,-500.0,0.00010272,2]
[348380062,1736485843860,-500.0,0.00010272,2]
[348380063,1736485843869,-500.0,0.00010272,2]
[348380064,1736485843879,-500.0,0.00010272,2]
[348380065,1736485843888,-500.0,0.00010272,2]
[348380066,1736485843898,-500.0,0.00010272,2]
[348380067,1736485843908,-500.0,0.00010272,2]
[348380068,1736485843917,-500.0,0.00010272,2]
[348380069,1736485843927,-500.0,0.00010272,2]
[348380070,1736485843936,-500.0,0.00010272,2]
[348380071,1736485843946,-500.0,0.00010272,2]
[348380072,1736485843957,-500.0,0.00010272,2]
[348380073,1736485843967,-500.0,0.00010272,2]
[348380074,1736485843977,-500.0,0.00010272,2]
[348380075,1736485843987,-500.0,0.00010272,2]
[348380076,1736485843997,-500.0,0.00010272,2]
[348380077,1736485844007,-512.49,0.00010272,2]
[348380078,1736485844016,-548.71,0.00010272,2]
[348380079,1736485844026,-517.44,0.00010272,2]
[348380080,1736485844036,-638.71,0.00010272,2]
[348380081,1736485844046,-747.11,0.00010272,2]
[348380082,1736485844056,-500.0,0.00010272,2]
[348380083,1736485844065,-500.0,0.00010272,2]
[348380084,1736485844075,-500.0,0.00010272,2]
[348380085,1736485844084,-500.0,0.00010272,2]
[348380086,1736485844093,-500.0,0.00010272,2]
[348380087,1736485844103,-500.0,0.00010272,2]
[348380088,1736485844113,-776.6,0.00010272,2]
[348380089,1736485844122,-620.59,0.00010272,2]
[348380090,1736485844132,-796.51,0.00010272,2]
[348380091,1736485844142,-802.9,0.00010272,2]
[348380092,1736485844151,-500.0,0.00010272,2]
[348380093,1736485844161,-500.0,0.00010272,2]
[348380094,1736485844170,-546.03,0.00010272,2]
[348380095,1736485844179,-500.0,0.00010272,2]
[348380096,1736485844189,-591.26,0.00010272,2]
[348380097,1736485844198,-500.0,0.00010272,2]
[348380098,1736485844208,-500.0,0.00010272,2]
[348380099,1736485844218,-500.0,0.00010272,2]
[348380100,1736485844231,-500.0,0.00010272,2]
[348380101,1736485844240,-737.07,0.00010272,2]
[348380102,1736485844249,-500.0,0.00010272,2]
[348380103,1736485844259,-500.0,0.00010272,2]
[348380104,1736485844269,-592.26,0.00010272,2]
[348380105,1736485844278,-730.39,0.00010272,2]
[348380106,1736485844288,-500.0,0.00010272,2]
[348380107,1736485844298,-878.76,0.00010272,2]
[348380108,1736485844307,-625.64,0.00010272,2]
[348380109,1736485844317,-542.31,0.00010272,2]
[348380110,1736485844326,-825.5,0.00010272,2]
[348380111,1736485844335,-500.0,0.00010272,2]
[348380112,1736485844350,-500.0,0.00010272,2]
[348380113,1736485844359,-500.0,0.00010272,2]
[348380114,1736485844369,-1008.98,0.00010272,2]
[348380115,1736485844378,-649.97,0.00010272,2]
[348380116,1736485844389,-965.32,0.00010272,2]
[348380117,1736485844398,-500.0,0.00010272,2]
[348380118,1736485844407,-1051.3,0.00010272,2]
[348380119,1736485844417,-500.0,0.00010272,2]
[348380120,1736485844427,-638.06,0.00010272,2]
[348380121,1736485844437,-856.2,0.00010272,2]
[348380122,1736485844447,-151.08,0.00010272,2]
[348380123,1736485844456,-991.12,0.00010273,2]
[348380124,1736485844466,-2492.72,0.00010273,2]
[348380125,1736485844475,-1117.6,0.00010273,2]
[348380126,1736485844485,-2716.02,0.00010273,2]
[348380127,1736485844495,-1051.97,0.00010273,2]
[348380128,1736485844505,-942.9,0.00010273,2]
[348380129,1736485844515,-1386.35,0.00010273,2]
[348380130,1736485844524,-1345.32,0.00010273,2]
[348380131,1736485844534,-2039.72,0.00010273,2]
[348380132,1736485844544,-1211.66,0.00010273,2]
[348380133,1736485844554,-500.0,0.00010273,2]
[348380134,1736485844563,-4020.8,0.00010273,2]
[348380135,1736485844573,-500.0,0.00010273,2]
[348380136,1736485844582,-1742.2,0.00010273,2]
[348380137,1736485844592,-2381.68,0.00010273,2]
[348380138,1736485844602,-1409.32,0.00010273,2]
[348380139,1736485844611,-1787.14,0.00010273,2]
[348380140,1736485844621,-973.16,0.00010273,2]
[348380141,1736485844630,-469.63365482,0.00010273,2]
[348380142,1736485844640,-1029.35,0.00010273,2]
[348380143,1736485844649,-1504.91,0.00010273,2]
[348380144,1736485844659,-2601.63,0.00010273,2]
[348380145,1736485844668,-1352.02,0.00010273,2]
[348380146,1736485844678,-2290.17,0.00010273,2]
[348380147,1736485844687,-962.88,0.00010273,2]
[348380148,1736485844697,-6045.19,0.00010273,2]
[348380149,1736485844706,-836.69,0.00010273,2]
[348380150,1736485844716,-1073.22,0.00010273,2]
[348380151,1736485844725,-1240.83,0.00010273,2]
[348380152,1736485844735,-739.05,0.00010273,2]
[348380153,1736485844745,-500.0,0.00010273,2]
[348380154,1736485844754,-596.81,0.00010273,2]
[348380155,1736485844764,-830.3,0.00010273,2]
[348380156,1736485844774,-823.66,0.00010273,2]
[348380157,1736485844783,-1261.47,0.00010273,2]
[348380158,1736485844793,-156.296,0.0001028,2]
[348380159,1736485844802,-2660.298,0.00010379,2]
[348380160,1736485844812,-150.287,0.00010379,2]
[348380161,1736485844821,-1347.01,0.00010449,2]
[348380162,1736485844830,-150.0,0.00010511,2]
[348380163,1736485844840,-1000.0,0.00010517,2]
[348380164,1736485844849,-200.99,0.00010542,2]
[348380165,1736485844859,-500.0,0.00010544,2]
[348380166,1736485844869,-830.78,0.00010544,2]
[348380167,1736485844878,-986.39,0.00010544,2]
[348380168,1736485844888,-1171.11,0.00010544,2]
[348380169,1736485844898,-789.43,0.00010544,2]
[348380170,1736485844907,-928.95,0.00010544,2]
[348380171,1736485844918,-935.11,0.00010544,2]
[348380172,1736485844927,-1179.99,0.00010544,2]
[348380173,1736485844937,-1222.87,0.00010544,2]
[348380174,1736485844947,-500.0,0.00010544,2]
[348380175,1736485844957,-1043.32,0.00010544,2]
[348380176,1736485844967,-1000.0,0.00010544,2]
[348380177,1736485844977,-2469.85,0.00010544,2]
[348380178,1736485844987,-1184.09,0.00010544,2]
[348380179,1736485844996,-984.96,0.00010544,2]
[348380180,1736485845006,-987.59,0.00010544,2]
[348380181,1736485845016,-774.76,0.00010544,2]
[348380182,1736485845025,-1658.41,0.00010544,2]
[348380183,1736485845035,-2058.34,0.00010544,2]
[348380184,1736485845045,-1289.09,0.00010544,2]
[348380185,1736485845054,-500.0,0.00010544,2]
[348380186,1736485845064,-500.0,0.00010544,2]
[348380187,1736485845074,-768.63,0.00010544,2]
[348380188,1736485845084,-500.0,0.00010544,2]
[348380189,1736485845094,-1495.58,0.00010544,2]
[348380190,1736485845104,-500.0,0.00010544,2]
[348380191,1736485845113,-2242.54,0.00010544,2]
[348380192,1736485845123,-2213.99,0.00010544,2]
[348380193,1736485845132,-709.35,0.00010544,2]
[348380194,1736485845142,-782.19,0.00010544,2]
[348380195,1736485845151,-2285.23,0.00010544,2]
[348380196,1736485845161,-500.0,0.00010545,2]
[348380197,1736485845170,-500.0,0.00010545,2]
[348380198,1736485845179,-1123.38,0.00010545,2]
[348380199,1736485845188,-500.0,0.00010545,2]
[348380200,1736485845198,-500.0,0.00010545,2]
[348380201,1736485845207,-627.85,0.00010545,2]
[348380202,1736485845216,-500.0,0.00010545,2]
[348380203,1736485845226,-500.0,0.00010545,2]
[348380204,1736485845235,-500.0,0.00010545,2]
[348380205,1736485845245,-500.0,0.00010545,2]
[348380206,1736485845255,-500.0,0.00010545,2]
[348380207,1736485845264,-887.68,0.00010545,2]
[348380208,1736485845273,-500.0,0.00010545,2]
[348380209,1736485845283,-639.22,0.00010545,2]
[348380210,1736485845295,-769.91,0.00010545,2]
[348380211,1736485845309,-500.0,0.00010545,2]
[348380212,1736485845319,-500.0,0.00010545,2]
[348380213,1736485845328,-742.36,0.00010545,2]
[348380214,1736485845338,-500.0,0.00010545,2]
[348380215,1736485845352,-500.0,0.00010545,2]
[348380216,1736485845362,-500.0,0.00010545,2]
[348380217,1736485845373,-500.0,0.00010545,2]
[348380218,1736485845383,-582.68,0.00010545,2]
[348380219,1736485845610,-500.0,0.00010545,2]
[348380220,1736485845619,-784.36,0.00010545,2]
[348380221,1736485845628,-500.0,0.00010545,2]
[348380222,1736485845638,-774.75,0.00010545,2]
[348380223,1736485845647,-500.0,0.00010545,2]
[348380224,1736485845656,-500.0,0.00010545,2]
[348380225,1736485845666,-500.0,0.00010545,2]
[348380226,1736485845675,-500.0,0.00010545,2]
[348380227,1736485845684,-500.0,0.00010545,2]
[348380228,1736485845694,-500.0,0.00010545,2]
[348380229,1736485845703,-500.0,0.00010545,2]
[348380230,1736485845712,-745.91,0.00010545,2]
[348380231,1736485845722,-500.0,0.00010545,2]
[348380232,1736485845731,-529.14,0.00010545,2]
[348380233,1736485845740,-544.93,0.00010545,2]
[348380234,1736485845750,-500.0,0.00010545,2]
[348380235,1736485845759,-743.07,0.00010545,2]
[348380236,1736485845768,-500.0,0.00010545,2]
[348380237,1736485845778,-500.0,0.00010545,2]
[348380238,1736485845787,-500.0,0.00010545,2]
[348380239,1736485845796,-758.33,0.00010545,2]
[348380240,1736485845805,-500.0,0.00010545,2]
[348380241,1736485845814,-500.0,0.00010545,2]
[348380242,1736485845823,-631.41,0.00010545,2]
[348380243,1736485845833,-806.17,0.00010545,2]
[348380244,1736485845843,-751.42,0.00010545,2]
[348380245,1736485845852,-500.0,0.00010545,2]
[348380246,1736485845862,-500.0,0.00010545,2]
[348380247,1736485845871,-809.57,0.00010545,2]
[348380248,1736485845880,-764.18,0.00010545,2]
[348380249,1736485845890,-882.65,0.00010545,2]
[348380250,1736485845899,-541.73,0.00010545,2]
[348380251,1736485845908,-500.0,0.00010545,2]
[348380252,1736485845917,-665.92,0.00010545,2]
[348380253,1736485845927,-500.0,0.00010545,2]
[348380254,1736485845936,-500.0,0.00010545,2]
[348380255,1736485845945,-500.0,0.00010545,2]
[348380256,1736485845956,-751.87,0.00010545,2]
[348380257,1736485845965,-782.38,0.00010545,2]
[348380258,1736485845975,-589.61,0.00010545,2]
[348380259,1736485845984,-540.49,0.00010545,2]
[348380260,1736485845994,-468.87453072,0.00010545,2]
[348380261,1736485846003,-571.58,0.00010545,2]
[348380262,1736485846012,-665.21,0.00010545,2]
[348380263,1736485846022,-713.83,0.00010545,2]
[348380264,1736485846032,-734.51,0.00010545,2]
[348380265,1736485846042,-500.0,0.00010545,2]
[348380266,1736485846053,-500.0,0.00010545,2]
[348380267,1736485846062,-500.0,0.00010545,2]
[348380268,1736485846071,-535.18,0.00010545,2]
[348380269,1736485846080,-781.63,0.00010545,2]
[348380270,1736485846090,-629.89,0.00010545,2]
[348380271,1736485846099,-1563.89,0.00010545,2]
[348380272,1736485846108,-500.0,0.00010545,2]
[348380273,1736485846118,-706.08,0.00010545,2]
[348380274,1736485846128,-1621.74,0.00010545,2]
[348380276,1736485846137,-600.7,0.00010545,2]
[348380278,1736485846147,-571.16,0.00010545,2]
[348380280,1736485846156,-1061.94,0.00010545,2]
[348380282,1736485846166,-2953.75,0.00010545,2]
[348380284,1736485846175,-500.0,0.00010545,2]
[348380286,1736485846185,-1036.81,0.00010545,2]
[348380288,1736485846194,-500.0,0.00010545,2]
[348380290,1736485846204,-500.0,0.00010545,2]
[348380292,1736485846213,-711.64,0.00010545,2]
[348380294,1736485846223,-726.71,0.00010545,2]
[348380296,1736485846232,-791.12,0.00010545,2]
[348380299,1736485846242,-500.0,0.00010545,2]
[348380301,1736485846252,-488.181607,0.00010545,2]
[348380303,1736485846261,-2512.42,0.00010545,2]
[348380305,1736485846270,-1270.51,0.00010545,2]
[348380307,1736485846279,-861.19,0.00010545,2]
[348380309,1736485846288,-978.38,0.00010545,2]
[348380311,1736485846297,-560.89,0.00010545,2]
[348380313,1736485846307,-500.0,0.00010545,2]
[348380315,1736485846316,-855.48,0.00010545,2]
[348380317,1736485846326,-1540.33,0.00010545,2]
[348380319,1736485846335,-985.69,0.00010545,2]
[348380321,1736485846349,-791.97,0.00010545,2]
[348380323,1736485846358,-481.684011,0.00010545,2]
[348380325,1736485846367,-1720.38,0.00010545,2]
[348380327,1736485846376,-1238.08,0.00010545,2]
[348380329,1736485846386,-500.0,0.00010545,2]
[348380331,1736485846396,-897.12,0.00010545,2]
[348380333,1736485846406,-3237.46,0.00010545,2]
[348380335,1736485846416,-716.16,0.00010545,2]
[348380337,1736485846426,-679.51,0.00010545,2]
[348380338,1736485846436,-636.34,0.00010545,2]
[348380339,1736485846447,-500.0,0.00010545,2]
[348380340,1736485846456,-2756.52,0.00010545,2]
[348380341,1736485846465,-500.0,0.00010545,2]
[348380342,1736485846474,-509.5,0.00010545,2]
[348380343,1736485846483,-500.0,0.00010545,2]
[348380344,1736485846492,-668.18,0.00010545,2]
[348380345,1736485846501,-1363.06,0.00010545,2]
[348380346,1736485846511,-500.0,0.00010545,2]
[348380347,1736485846520,-500.0,0.00010545,2]
[348380348,1736485846529,-931.51,0.00010545,2]
[348380349,1736485846539,-916.73,0.00010545,2]
[348380350,1736485846551,-500.0,0.00010545,2]
[348380351,1736485846561,-833.46,0.00010545,2]
[348380352,1736485846570,-500.0,0.00010545,2]
[348380353,1736485846579,-500.0,0.00010545,2]
[348380354,1736485846588,-648.63,0.00010545,2]
[348380355,1736485846598,-1563.25,0.00010545,2]
[348380356,1736485846607,-715.62,0.00010545,2]
[348380357,1736485846616,-500.0,0.00010545,2]
[348380358,1736485846626,-500.0,0.00010545,2]
[348380359,1736485846635,-684.13,0.00010545,2]
[348380360,1736485846645,-1315.2,0.00010545,2]
[348380361,1736485846655,-1063.94,0.00010545,2]
[348380362,1736485846664,-500.0,0.00010545,2]
[348380363,1736485846674,-843.01,0.00010545,2]
[348380364,1736485846684,-500.0,0.00010545,2]
[348380365,1736485846693,-500.0,0.00010545,2]
[348380366,1736485846703,-650.08,0.00010545,2]
[348380367,1736485846712,-500.0,0.00010545,2]
[348380368,1736485846721,-572.46,0.00010545,2]
[348380369,1736485846731,-681.82,0.00010545,2]
[348380370,1736485846741,-500.0,0.00010545,2]
[348380371,1736485846750,-2208.62,0.00010545,2]
[348380372,1736485846760,-500.0,0.00010545,2]
[348380373,1736485846770,-884.01,0.00010545,2]
[348380374,1736485846779,-572.56,0.00010545,2]
[348380375,1736485846789,-570.27,0.00010545,2]
[348380376,1736485846800,-524.1,0.00010545,2]
[348380377,1736485846812,-500.0,0.00010545,2]
[348380378,1736485846821,-500.0,0.00010545,2]
[348380379,1736485846831,-500.0,0.00010545,2]
[348380380,1736485846842,-500.0,0.00010545,2]
[348380381,1736485846856,-576.32,0.00010545,2]
[348380382,1736485846866,-1363.99,0.00010545,2]
[348380383,1736485846876,-500.0,0.00010545,2]
[348380384,1736485846886,-500.0,0.00010545,2]
[348380385,1736485846895,-500.0,0.00010545,2]
[348380386,1736485846905,-3399.4,0.00010545,2]
[348380387,1736485846915,-246.78452451,0.00010545,2]
[348380388,1736485846926,-2731.96,0.00010545,2]
[348380389,1736485846936,-500.0,0.00010546,2]
[348380390,1736485846946,-520.91,0.00010546,2]
[348380391,1736485846957,-500.0,0.00010546,2]
[348380392,1736485846966,-519.85,0.00010546,2]
[348380393,1736485846975,-500.0,0.00010546,2]
[348380394,1736485846986,-500.0,0.00010546,2]
[348380395,1736485846996,-282.37463197,0.00010546,2]
[348380396,1736485847006,-699.0,0.00010546,2]
[348380397,1736485847016,-500.0,0.00010546,2]
[348380398,1736485847026,-500.0,0.00010546,2]
[348380399,1736485847036,-500.0,0.00010546,2]
[348380400,1736485847046,-500.0,0.00010546,2]
[348380401,1736485847056,-574.69,0.00010546,2]
[348380402,1736485847067,-500.0,0.00010546,2]
[348380403,1736485847077,-500.0,0.00010546,2]
[348380404,1736485847087,-500.0,0.00010546,2]
[348380405,1736485847097,-500.0,0.00010546,2]
[348380406,1736485847109,-500.0,0.00010546,2]
[348380407,1736485847118,-500.0,0.00010546,2]
[348380408,1736485847128,-620.37,0.00010546,2]
[348380409,1736485847138,-169.47786625,0.00010546,2]
[348380410,1736485847147,-500.0,0.00010546,2]
[348380411,1736485847157,-500.0,0.00010546,2]